[Event "Titled Tuesday Blitz October 31 Late 2023"]
[White "Javakhadze, Zurab"]
[Black "Daneshvar, Bardiya"]
[WhiteFideId "13603647"]
[BlackFideId "12576468"]
[WhiteElo "2798"]
[BlackElo "2963"]
[Result "0-1"]
[Round "11"]
[TimeControl "180+1"]
[Date "2023.10.31"]
[WhiteClock "0:00:32"]
[BlackClock "0:02:03"]
[Board "7"]

1. Nf3 {[%clk 0:03:00]}  Nf6 {[%clk 0:02:59]} 2. g3 {[%clk 0:02:57]}  b6 {[%clk 0:03:00]} 3. Bg2 {[%clk 0:02:58]}  Bb7 {[%clk 0:03:01]} 4. O-O {[%clk 0:02:59]}  g6 {[%clk 0:03:02]} 5. c4 {[%clk 0:02:59]}  Bg7 {[%clk 0:03:02]} 6. d4 {[%clk 0:02:59]}  O-O {[%clk 0:03:03]} 7. d5 {[%clk 0:02:59]}  Na6 {[%clk 0:03:02]} 8. Nc3 {[%clk 0:02:58]}  Nc5 {[%clk 0:03:03]} 9. Qc2 {[%clk 0:02:54]}  d6 {[%clk 0:03:02]} 10. Rd1 {[%clk 0:02:51]}  a5 {[%clk 0:03:01]} 11. e4 {[%clk 0:02:47]}  e5 {[%clk 0:03:02]} 12. h3 {[%clk 0:02:45]}  Bc8 {[%clk 0:03:00]} 13. b3 {[%clk 0:02:40]}  Kh8 {[%clk 0:02:59]} 14. a3 {[%clk 0:02:39]}  a4 {[%clk 0:02:58]} 15. b4 {[%clk 0:02:39]}  Nb3 {[%clk 0:02:58]} 16. Rb1 {[%clk 0:02:39]}  Nxc1 {[%clk 0:02:59]} 17. Rbxc1 {[%clk 0:02:38]}  Ng8 {[%clk 0:02:59]} 18. c5 {[%clk 0:02:37]}  bxc5 {[%clk 0:02:57]} 19. bxc5 {[%clk 0:02:38]}  f5 {[%clk 0:02:57]} 20. cxd6 {[%clk 0:02:35]}  cxd6 {[%clk 0:02:57]} 21. Nd2 {[%clk 0:02:07]}  f4 {[%clk 0:02:56]} 22. Nb5 {[%clk 0:02:06]}  fxg3 {[%clk 0:02:56]} 23. fxg3 {[%clk 0:02:06]}  Qb6+ {[%clk 0:02:56]} 24. Kh2 {[%clk 0:02:01]}  Qxb5 {[%clk 0:02:55]} 25. Nc4 {[%clk 0:01:55]}  Qa6 {[%clk 0:02:54]} 26. Rb1 {[%clk 0:01:52]}  Bd7 {[%clk 0:02:54]} 27. Nb6 {[%clk 0:01:50]}  Rad8 {[%clk 0:02:51]} 28. Qc7 {[%clk 0:01:44]}  Bb5 {[%clk 0:02:49]} 29. Rd2 {[%clk 0:01:40]}  Rb8 {[%clk 0:02:44]} 30. Nd7 {[%clk 0:01:26]}  Rb7 {[%clk 0:02:40]} 31. Qxb7 {[%clk 0:01:25]}  Qxb7 {[%clk 0:02:40]} 32. Nxf8 {[%clk 0:01:26]}  Bxf8 {[%clk 0:02:39]} 33. Rdb2 {[%clk 0:01:27]}  Qa7 {[%clk 0:02:25]} 34. Rxb5 {[%clk 0:01:26]}  Qe3 {[%clk 0:02:17]} 35. Rb8 {[%clk 0:01:25]}  Be7 {[%clk 0:02:12]} 36. Ra8 {[%clk 0:01:22]}  Kg7 {[%clk 0:02:11]} 37. Rxa4 {[%clk 0:01:20]}  Nf6 {[%clk 0:02:11]} 38. Rb7 {[%clk 0:01:17]}  Nh5 {[%clk 0:02:11]} 39. Rxe7+ {[%clk 0:01:11]}  Kh6 {[%clk 0:02:12]} 40. Raa7 {[%clk 0:00:57]}  Qxg3+ {[%clk 0:02:10]} 41. Kh1 {[%clk 0:00:57]}  Nf4 {[%clk 0:02:08]} 42. Rxh7+ {[%clk 0:00:53]}  Kg5 {[%clk 0:02:08]} 43. Bf1 {[%clk 0:00:49]}  Qf2 {[%clk 0:02:03]} 44. h4+ {[%clk 0:00:32]}  Kg4 {[%clk 0:02:03]} 0-1


[Site "https://www.chess.com"]

[Event "Titled Tuesday Blitz October 31 Late 2023"]
[White "Koellner, Ruben Gideon"]
[Black "Chigaev, Maksim"]
[WhiteFideId "12993093"]
[BlackFideId "4108116"]
[WhiteElo "2741"]
[BlackElo "2934"]
[Result "1-0"]
[Round "11"]
[TimeControl "180+1"]
[Date "2023.10.31"]
[WhiteClock "0:00:17"]
[BlackClock "0:00:01"]
[Board "12"]

1. d4 {[%clk 0:03:00]}  Nf6 {[%clk 0:02:59]} 2. Nf3 {[%clk 0:03:00]}  d5 {[%clk 0:02:55]} 3. e3 {[%clk 0:02:59]}  c6 {[%clk 0:02:52]} 4. Nbd2 {[%clk 0:02:56]}  Bf5 {[%clk 0:02:52]} 5. Ne5 {[%clk 0:02:55]}  h5 {[%clk 0:02:51]} 6. Bd3 {[%clk 0:02:52]}  e6 {[%clk 0:02:49]} 7. Bxf5 {[%clk 0:02:50]}  exf5 {[%clk 0:02:50]} 8. c4 {[%clk 0:02:48]}  Nbd7 {[%clk 0:02:49]} 9. Nxd7 {[%clk 0:02:44]}  Qxd7 {[%clk 0:02:49]} 10. cxd5 {[%clk 0:02:40]}  Qxd5 {[%clk 0:02:46]} 11. O-O {[%clk 0:02:36]}  Bd6 {[%clk 0:02:43]} 12. Qb3 {[%clk 0:02:31]}  b6 {[%clk 0:02:24]} 13. Qxd5 {[%clk 0:02:29]}  cxd5 {[%clk 0:02:20]} 14. Nb1 {[%clk 0:02:24]}  Kd7 {[%clk 0:02:15]} 15. Nc3 {[%clk 0:02:24]}  Bb4 {[%clk 0:02:14]} 16. Ne2 {[%clk 0:02:20]}  Rhc8 {[%clk 0:02:09]} 17. a3 {[%clk 0:02:20]}  Bd6 {[%clk 0:02:10]} 18. Nc3 {[%clk 0:02:19]}  a5 {[%clk 0:02:06]} 19. Bd2 {[%clk 0:02:18]}  a4 {[%clk 0:02:06]} 20. Nb5 {[%clk 0:02:15]}  Ne4 {[%clk 0:02:01]} 21. Bc3 {[%clk 0:02:10]}  Kc6 {[%clk 0:01:59]} 22. Nxd6 {[%clk 0:02:07]}  Nxd6 {[%clk 0:01:53]} 23. Rac1 {[%clk 0:02:05]}  Kb5 {[%clk 0:01:53]} 24. f3 {[%clk 0:01:58]}  g6 {[%clk 0:01:50]} 25. Kf2 {[%clk 0:01:58]}  Rc6 {[%clk 0:01:48]} 26. Rce1 {[%clk 0:01:54]}  Re8 {[%clk 0:01:46]} 27. Re2 {[%clk 0:01:54]}  Nc4 {[%clk 0:01:45]} 28. Bb4 {[%clk 0:01:51]}  Rce6 {[%clk 0:01:42]} 29. Rfe1 {[%clk 0:01:51]}  g5 {[%clk 0:01:23]} 30. h3 {[%clk 0:01:32]}  h4 {[%clk 0:01:22]} 31. Bc3 {[%clk 0:01:29]}  f6 {[%clk 0:00:52]} 32. Bb4 {[%clk 0:01:26]}  Kc6 {[%clk 0:00:51]} 33. Bc3 {[%clk 0:01:23]}  f4 {[%clk 0:00:37]} 34. exf4 {[%clk 0:01:19]}  Rxe2+ {[%clk 0:00:35]} 35. Rxe2 {[%clk 0:01:20]}  Rxe2+ {[%clk 0:00:35]} 36. Kxe2 {[%clk 0:01:21]}  gxf4 {[%clk 0:00:35]} 37. Be1 {[%clk 0:01:14]}  Nxb2 {[%clk 0:00:29]} 38. Bxh4 {[%clk 0:00:51]}  b5 {[%clk 0:00:11]} 39. Be1 {[%clk 0:00:50]}  Nc4 {[%clk 0:00:08]} 40. Bb4 {[%clk 0:00:49]}  Kd7 {[%clk 0:00:09]} 41. Kf2 {[%clk 0:00:47]}  Ke6 {[%clk 0:00:09]} 42. Bc5 {[%clk 0:00:45]}  Kf5 {[%clk 0:00:09]} 43. Ke2 {[%clk 0:00:45]}  Kg5 {[%clk 0:00:09]} 44. Kf2 {[%clk 0:00:44]}  Kh5 {[%clk 0:00:10]} 45. Ke2 {[%clk 0:00:43]}  Ne3 {[%clk 0:00:07]} 46. Kf2 {[%clk 0:00:42]}  Nf5 {[%clk 0:00:05]} 47. Ke2 {[%clk 0:00:40]}  Kg5 {[%clk 0:00:05]} 48. Kf2 {[%clk 0:00:39]}  Kh6 {[%clk 0:00:06]} 49. Ke2 {[%clk 0:00:40]}  Kg6 {[%clk 0:00:06]} 50. Kf2 {[%clk 0:00:31]}  Ng7 {[%clk 0:00:06]} 51. Ke2 {[%clk 0:00:24]}  Ne6 {[%clk 0:00:06]} 52. Kd3 {[%clk 0:00:24]}  Kh5 {[%clk 0:00:06]} 53. Bb4 {[%clk 0:00:24]}  Kg5 {[%clk 0:00:06]} 54. Be1 {[%clk 0:00:19]}  Nd8 {[%clk 0:00:04]} 55. Kc3 {[%clk 0:00:18]}  Nc6 {[%clk 0:00:05]} 56. Bf2 {[%clk 0:00:18]}  Kh5 {[%clk 0:00:05]} 57. Be1 {[%clk 0:00:19]}  Kg6 {[%clk 0:00:05]} 58. Bf2 {[%clk 0:00:19]}  Kg5 {[%clk 0:00:05]} 59. Be1 {[%clk 0:00:20]}  f5 {[%clk 0:00:05]} 60. Bd2 {[%clk 0:00:19]}  Nd8 {[%clk 0:00:02]} 61. Kb4 {[%clk 0:00:17]}  Nc6+ {[%clk 0:00:02]} 62. Kc5 {[%clk 0:00:17]}  Nxd4 {[%clk 0:00:01]} 63. Kxd4 {[%clk 0:00:17]} 1-0


[Site "https://www.chess.com"]

[Event "Titled Tuesday Blitz October 31 Late 2023"]
[White "Ilamparthi A R"]
[Black "Hamitevici, Vladimir"]
[WhiteFideId "45015775"]
[BlackFideId "13902393"]
[WhiteElo "2931"]
[BlackElo "2729"]
[Result "1-0"]
[Round "11"]
[TimeControl "180+1"]
[Date "2023.10.31"]
[WhiteClock "0:00:34"]
[BlackClock "0:00:01"]
[Board "13"]

1. d4 {[%clk 0:03:00]}  d6 {[%clk 0:03:00]} 2. Nf3 {[%clk 0:03:00]}  g6 {[%clk 0:03:00]} 3. Bf4 {[%clk 0:02:58]}  Bg7 {[%clk 0:02:59]} 4. e3 {[%clk 0:02:59]}  f5 {[%clk 0:02:54]} 5. h4 {[%clk 0:02:56]}  Nf6 {[%clk 0:02:52]} 6. h5 {[%clk 0:02:54]}  Nxh5 {[%clk 0:02:31]} 7. Rxh5 {[%clk 0:02:53]}  gxh5 {[%clk 0:02:32]} 8. Ng5 {[%clk 0:02:53]}  c6 {[%clk 0:02:24]} 9. Qxh5+ {[%clk 0:02:40]}  Kd7 {[%clk 0:02:24]} 10. Nc3 {[%clk 0:02:31]}  Qe8 {[%clk 0:02:12]} 11. Qh3 {[%clk 0:02:28]}  Kc7 {[%clk 0:02:06]} 12. Bc4 {[%clk 0:02:27]}  e5 {[%clk 0:01:45]} 13. dxe5 {[%clk 0:02:24]}  dxe5 {[%clk 0:01:33]} 14. Bh2 {[%clk 0:02:16]}  Qg6 {[%clk 0:01:25]} 15. Qg3 {[%clk 0:02:06]}  Bf6 {[%clk 0:01:04]} 16. O-O-O {[%clk 0:01:46]}  b5 {[%clk 0:00:38]} 17. Bxb5 {[%clk 0:01:08]}  cxb5 {[%clk 0:00:38]} 18. Nxb5+ {[%clk 0:01:07]}  Kb7 {[%clk 0:00:27]} 19. Qf3+ {[%clk 0:00:59]}  Nc6 {[%clk 0:00:22]} 20. Rd6 {[%clk 0:00:59]}  e4 {[%clk 0:00:20]} 21. Qe2 {[%clk 0:00:42]}  Qxg5 {[%clk 0:00:19]} 22. Qc4 {[%clk 0:00:42]}  Bxb2+ {[%clk 0:00:07]} 23. Kb1 {[%clk 0:00:36]}  Bd7 {[%clk 0:00:03]} 24. Rxd7+ {[%clk 0:00:36]}  Kb6 {[%clk 0:00:01]} 25. Bc7+ {[%clk 0:00:34]} 1-0


[Site "https://www.chess.com"]

[Event "Titled Tuesday Blitz October 31 Late 2023"]
[White "Ibarra Jerez, Jose Carlos"]
[Black "Luczak, Filip"]
[WhiteFideId "2226332"]
[BlackFideId "1193686"]
[WhiteElo "2923"]
[BlackElo "2676"]
[Result "0-1"]
[Round "11"]
[TimeControl "180+1"]
[Date "2023.10.31"]
[WhiteClock "0:00:20"]
[BlackClock "0:00:30"]
[Board "14"]

1. e4 {[%clk 0:03:00]}  g6 {[%clk 0:02:51]} 2. d4 {[%clk 0:03:00]}  Bg7 {[%clk 0:02:42]} 3. Nf3 {[%clk 0:03:00]}  c5 {[%clk 0:02:41]} 4. dxc5 {[%clk 0:02:59]}  Na6 {[%clk 0:02:40]} 5. c3 {[%clk 0:02:59]}  Nxc5 {[%clk 0:02:40]} 6. Nbd2 {[%clk 0:02:56]}  Nf6 {[%clk 0:02:38]} 7. e5 {[%clk 0:02:50]}  Ng4 {[%clk 0:02:38]} 8. Nc4 {[%clk 0:02:50]}  b5 {[%clk 0:02:32]} 9. Qd5 {[%clk 0:02:39]}  Bb7 {[%clk 0:02:29]} 10. Qxc5 {[%clk 0:02:35]}  bxc4 {[%clk 0:02:30]} 11. Bf4 {[%clk 0:02:31]}  O-O {[%clk 0:02:26]} 12. Rd1 {[%clk 0:02:23]}  Rc8 {[%clk 0:02:23]} 13. Qxa7 {[%clk 0:01:46]}  Bxf3 {[%clk 0:01:54]} 14. gxf3 {[%clk 0:01:43]}  Nxe5 {[%clk 0:01:52]} 15. Bxe5 {[%clk 0:01:43]}  Bxe5 {[%clk 0:01:53]} 16. Rxd7 {[%clk 0:01:43]}  Qe8 {[%clk 0:01:49]} 17. Rxe7 {[%clk 0:01:30]}  Qb5 {[%clk 0:01:47]} 18. Qb7 {[%clk 0:01:19]}  Qa5 {[%clk 0:01:37]} 19. Qe4 {[%clk 0:01:05]}  Bxc3+ {[%clk 0:01:27]} 20. bxc3 {[%clk 0:00:59]}  Qxc3+ {[%clk 0:01:28]} 21. Ke2 {[%clk 0:00:59]}  Qb2+ {[%clk 0:01:18]} 22. Ke3 {[%clk 0:00:57]}  Qc1+ {[%clk 0:01:10]} 23. Ke2 {[%clk 0:00:24]}  Rfd8 {[%clk 0:01:02]} 24. Bh3 {[%clk 0:00:23]}  Qxh1 {[%clk 0:00:31]} 25. Bxc8 {[%clk 0:00:20]}  Qd1+ {[%clk 0:00:30]} 26. Ke3 {[%clk 0:00:20]}  Qd2# {[%clk 0:00:30]} 0-1


[Site "https://www.chess.com"]

[Event "Titled Tuesday Blitz October 31 Late 2023"]
[White "Ibadov, Dashgyn"]
[Black "Cordova, Emilio"]
[WhiteFideId "24107514"]
[BlackFideId "3801497"]
[WhiteElo "2631"]
[BlackElo "2918"]
[Result "1-0"]
[Round "11"]
[TimeControl "180+1"]
[Date "2023.10.31"]
[WhiteClock "0:00:05"]
[BlackClock "0:00:38"]
[Board "15"]

1. e4 {[%clk 0:03:00]}  c5 {[%clk 0:02:59]} 2. Nf3 {[%clk 0:03:01]}  b6 {[%clk 0:02:56]} 3. Nc3 {[%clk 0:02:58]}  Bb7 {[%clk 0:02:56]} 4. g3 {[%clk 0:02:53]}  d6 {[%clk 0:02:53]} 5. Bg2 {[%clk 0:02:52]}  e5 {[%clk 0:02:53]} 6. O-O {[%clk 0:02:51]}  Be7 {[%clk 0:02:52]} 7. Nd5 {[%clk 0:02:51]}  Bxd5 {[%clk 0:02:52]} 8. exd5 {[%clk 0:02:50]}  Nf6 {[%clk 0:02:52]} 9. Nxe5 {[%clk 0:02:43]}  dxe5 {[%clk 0:02:49]} 10. d6 {[%clk 0:02:44]}  Qxd6 {[%clk 0:02:39]} 11. Bxa8 {[%clk 0:02:44]}  Nc6 {[%clk 0:02:40]} 12. d3 {[%clk 0:02:39]}  O-O {[%clk 0:02:39]} 13. Bxc6 {[%clk 0:02:37]}  Qxc6 {[%clk 0:02:40]} 14. Bg5 {[%clk 0:02:34]}  Nd5 {[%clk 0:02:40]} 15. Bxe7 {[%clk 0:02:32]}  Nxe7 {[%clk 0:02:40]} 16. Qe2 {[%clk 0:02:32]}  Ng6 {[%clk 0:02:37]} 17. a4 {[%clk 0:02:25]}  a5 {[%clk 0:02:36]} 18. b3 {[%clk 0:02:18]}  Rd8 {[%clk 0:02:36]} 19. Rae1 {[%clk 0:02:17]}  Rd4 {[%clk 0:02:33]} 20. f4 {[%clk 0:02:15]}  f6 {[%clk 0:02:31]} 21. fxe5 {[%clk 0:02:06]}  Nxe5 {[%clk 0:02:32]} 22. Qf2 {[%clk 0:01:55]}  Qd6 {[%clk 0:02:16]} 23. Re4 {[%clk 0:01:36]}  Rxe4 {[%clk 0:02:15]} 24. dxe4 {[%clk 0:01:37]}  h5 {[%clk 0:02:09]} 25. Qe2 {[%clk 0:01:34]}  h4 {[%clk 0:02:07]} 26. Kg2 {[%clk 0:01:33]}  Qe6 {[%clk 0:02:03]} 27. gxh4 {[%clk 0:01:28]}  c4 {[%clk 0:02:01]} 28. bxc4 {[%clk 0:01:24]}  Nxc4 {[%clk 0:02:01]} 29. Rd1 {[%clk 0:01:19]}  Nd6 {[%clk 0:01:45]} 30. Qf3 {[%clk 0:00:41]}  Kh7 {[%clk 0:01:27]} 31. e5 {[%clk 0:00:17]}  fxe5 {[%clk 0:01:19]} 32. Qd3+ {[%clk 0:00:17]}  Nf5 {[%clk 0:01:18]} 33. Qe4 {[%clk 0:00:14]}  Qg6+ {[%clk 0:01:16]} 34. Kf2 {[%clk 0:00:14]}  Qf6 {[%clk 0:01:09]} 35. Kg1 {[%clk 0:00:12]}  Kh8 {[%clk 0:01:02]} 36. Rf1 {[%clk 0:00:09]}  Qg6+ {[%clk 0:01:02]} 37. Kf2 {[%clk 0:00:09]}  Qh5 {[%clk 0:01:01]} 38. Kg2 {[%clk 0:00:05]}  Qg6+ {[%clk 0:00:55]} 39. Kh3 {[%clk 0:00:06]}  Ne7 {[%clk 0:00:44]} 40. Qxg6 {[%clk 0:00:07]}  Nxg6 {[%clk 0:00:44]} 41. Rb1 {[%clk 0:00:08]}  Nf4+ {[%clk 0:00:44]} 42. Kg4 {[%clk 0:00:08]}  Nd5 {[%clk 0:00:44]} 43. Rb5 {[%clk 0:00:07]}  Nc3 {[%clk 0:00:44]} 44. Rxb6 {[%clk 0:00:06]}  Nxa4 {[%clk 0:00:45]} 45. Rb5 {[%clk 0:00:06]}  Nc3 {[%clk 0:00:44]} 46. Rxa5 {[%clk 0:00:06]}  e4 {[%clk 0:00:45]} 47. Rc5 {[%clk 0:00:05]}  Nd1 {[%clk 0:00:41]} 48. Re5 {[%clk 0:00:05]}  e3 {[%clk 0:00:41]} 49. Kf3 {[%clk 0:00:05]}  Kg8 {[%clk 0:00:41]} 50. Rxe3 {[%clk 0:00:05]}  Kf7 {[%clk 0:00:38]} 51. c4 {[%clk 0:00:05]} 1-0


[Site "https://www.chess.com"]

[Event "Titled Tuesday Blitz October 31 Late 2023"]
[White "Zhigalko, Sergei"]
[Black "Tologon tegin, Semetei"]
[WhiteFideId "13502956"]
[BlackFideId "13800574"]
[WhiteElo "2908"]
[BlackElo "2579"]
[Result "1-0"]
[Round "11"]
[TimeControl "180+1"]
[Date "2023.10.31"]
[WhiteClock "0:01:08"]
[BlackClock "0:00:00"]
[Board "16"]

1. e4 {[%clk 0:03:00]}  Nc6 {[%clk 0:02:57]} 2. Nf3 {[%clk 0:03:00]}  Nf6 {[%clk 0:02:54]} 3. e5 {[%clk 0:02:57]}  Nd5 {[%clk 0:02:54]} 4. d4 {[%clk 0:02:56]}  d6 {[%clk 0:02:53]} 5. Bb5 {[%clk 0:02:56]}  Bd7 {[%clk 0:02:46]} 6. c4 {[%clk 0:02:51]}  Nb6 {[%clk 0:02:46]} 7. O-O {[%clk 0:02:49]}  dxe5 {[%clk 0:02:31]} 8. d5 {[%clk 0:02:48]}  Nd4 {[%clk 0:02:30]} 9. Bxd7+ {[%clk 0:02:40]}  Nxd7 {[%clk 0:02:31]} 10. Nxd4 {[%clk 0:02:34]}  exd4 {[%clk 0:02:30]} 11. Qxd4 {[%clk 0:02:35]}  Nf6 {[%clk 0:02:25]} 12. Re1 {[%clk 0:02:20]}  Qd7 {[%clk 0:02:22]} 13. Bg5 {[%clk 0:02:09]}  O-O-O {[%clk 0:02:19]} 14. Qxa7 {[%clk 0:02:08]}  Qg4 {[%clk 0:02:15]} 15. Qa8+ {[%clk 0:01:45]}  Kd7 {[%clk 0:02:14]} 16. Qa4+ {[%clk 0:01:46]}  Kc8 {[%clk 0:02:04]} 17. Be3 {[%clk 0:01:43]}  e6 {[%clk 0:01:46]} 18. h3 {[%clk 0:01:33]}  Qh4 {[%clk 0:01:41]} 19. Nc3 {[%clk 0:01:23]}  exd5 {[%clk 0:01:36]} 20. Qa8+ {[%clk 0:01:16]}  Kd7 {[%clk 0:01:35]} 21. Qxb7 {[%clk 0:01:17]}  Qxc4 {[%clk 0:01:22]} 22. Rac1 {[%clk 0:01:09]}  Qc6 {[%clk 0:01:15]} 23. Qxc6+ {[%clk 0:01:08]}  Kxc6 {[%clk 0:00:00]} 24. Nxd5+ {[%clk 0:01:08]} 1-0


[Site "https://www.chess.com"]

[Event "Titled Tuesday Blitz October 31 Late 2023"]
[White "Krzyzanowski, Marcin"]
[Black "Rosen, Eric"]
[WhiteFideId "1132199"]
[BlackFideId "2032562"]
[WhiteElo "2764"]
[BlackElo "2664"]
[Result "0-1"]
[Round "11"]
[TimeControl "180+1"]
[Date "2023.10.31"]
[WhiteClock "0:00:03"]
[BlackClock "0:00:10"]
[Board "18"]

1. Nf3 {[%clk 0:03:00]}  d5 {[%clk 0:02:58]} 2. g3 {[%clk 0:03:01]}  Nf6 {[%clk 0:02:58]} 3. Bg2 {[%clk 0:03:01]}  e6 {[%clk 0:02:58]} 4. O-O {[%clk 0:03:02]}  Be7 {[%clk 0:02:53]} 5. c4 {[%clk 0:03:02]}  dxc4 {[%clk 0:02:51]} 6. Qa4+ {[%clk 0:03:01]}  Nbd7 {[%clk 0:02:49]} 7. Qxc4 {[%clk 0:02:58]}  a6 {[%clk 0:02:49]} 8. Qc2 {[%clk 0:02:52]}  c5 {[%clk 0:02:48]} 9. Nc3 {[%clk 0:02:47]}  O-O {[%clk 0:02:29]} 10. d4 {[%clk 0:02:46]}  b5 {[%clk 0:02:16]} 11. dxc5 {[%clk 0:02:36]}  Nxc5 {[%clk 0:02:09]} 12. b4 {[%clk 0:02:24]}  Nb7 {[%clk 0:01:38]} 13. Ne5 {[%clk 0:02:23]}  Qc7 {[%clk 0:01:35]} 14. Nc6 {[%clk 0:01:43]}  Bd6 {[%clk 0:01:28]} 15. a4 {[%clk 0:01:34]}  bxa4 {[%clk 0:01:09]} 16. b5 {[%clk 0:01:35]}  Bd7 {[%clk 0:01:06]} 17. Rxa4 {[%clk 0:01:33]}  Nc5 {[%clk 0:01:00]} 18. Rh4 {[%clk 0:01:30]}  g6 {[%clk 0:00:14]} 19. Bg5 {[%clk 0:01:23]}  Nh5 {[%clk 0:00:04]} 20. Rd1 {[%clk 0:01:20]}  Rfc8 {[%clk 0:00:04]} 21. Rhd4 {[%clk 0:00:57]}  Bxc6 {[%clk 0:00:03]} 22. Bxc6 {[%clk 0:00:55]}  Be5 {[%clk 0:00:03]} 23. R4d2 {[%clk 0:00:42]}  Rab8 {[%clk 0:00:03]} 24. f4 {[%clk 0:00:32]}  Bg7 {[%clk 0:00:03]} 25. Ne4 {[%clk 0:00:08]}  Nxe4 {[%clk 0:00:03]} 26. Qxe4 {[%clk 0:00:08]}  axb5 {[%clk 0:00:03]} 27. Bd7 {[%clk 0:00:06]}  Qb6+ {[%clk 0:00:03]} 28. Kg2 {[%clk 0:00:06]}  Rf8 {[%clk 0:00:03]} 29. Be7 {[%clk 0:00:06]}  Nf6 {[%clk 0:00:03]} 30. Qd3 {[%clk 0:00:02]}  Nxd7 {[%clk 0:00:02]} 31. Qxd7 {[%clk 0:00:03]}  Rfe8 {[%clk 0:00:03]} 32. Bd6 {[%clk 0:00:02]}  Qb7+ {[%clk 0:00:02]} 33. Qxb7 {[%clk 0:00:03]}  Rxb7 {[%clk 0:00:03]} 34. Bb4 {[%clk 0:00:03]}  Bf8 {[%clk 0:00:04]} 35. Ba5 {[%clk 0:00:03]}  b4 {[%clk 0:00:04]} 36. Rd8 {[%clk 0:00:03]}  Rxd8 {[%clk 0:00:03]} 37. Rxd8 {[%clk 0:00:04]}  Kg7 {[%clk 0:00:03]} 38. Kf3 {[%clk 0:00:04]}  b3 {[%clk 0:00:03]} 39. Bc3+ {[%clk 0:00:05]}  f6 {[%clk 0:00:04]} 40. Bb2 {[%clk 0:00:06]}  Kf7 {[%clk 0:00:04]} 41. Rd3 {[%clk 0:00:06]}  Be7 {[%clk 0:00:04]} 42. e4 {[%clk 0:00:06]}  h5 {[%clk 0:00:04]} 43. e5 {[%clk 0:00:06]}  Rb5 {[%clk 0:00:03]} 44. exf6 {[%clk 0:00:05]}  Bxf6 {[%clk 0:00:03]} 45. Rd7+ {[%clk 0:00:06]}  Ke8 {[%clk 0:00:04]} 46. Rd2 {[%clk 0:00:06]}  Bxb2 {[%clk 0:00:04]} 47. Rxb2 {[%clk 0:00:06]}  Ke7 {[%clk 0:00:05]} 48. Ke4 {[%clk 0:00:07]}  Kf6 {[%clk 0:00:05]} 49. h3 {[%clk 0:00:07]}  Rb4+ {[%clk 0:00:06]} 50. Kf3 {[%clk 0:00:05]}  g5 {[%clk 0:00:05]} 51. fxg5+ {[%clk 0:00:05]}  Kxg5 {[%clk 0:00:06]} 52. Ke3 {[%clk 0:00:04]}  Rb8 {[%clk 0:00:03]} 53. Kf3 {[%clk 0:00:03]}  e5 {[%clk 0:00:03]} 54. Ke4 {[%clk 0:00:03]}  Rb5 {[%clk 0:00:04]} 55. Ke3 {[%clk 0:00:02]}  Kf5 {[%clk 0:00:04]} 56. Rf2+ {[%clk 0:00:03]}  Ke6 {[%clk 0:00:04]} 57. Rb2 {[%clk 0:00:04]}  Kd5 {[%clk 0:00:04]} 58. g4 {[%clk 0:00:03]}  hxg4 {[%clk 0:00:04]} 59. hxg4 {[%clk 0:00:04]}  Rb4 {[%clk 0:00:04]} 60. g5 {[%clk 0:00:05]}  Ke6 {[%clk 0:00:05]} 61. g6 {[%clk 0:00:04]}  Kf6 {[%clk 0:00:05]} 62. Rg2 {[%clk 0:00:05]}  Kg7 {[%clk 0:00:05]} 63. Rb2 {[%clk 0:00:01]}  Kxg6 {[%clk 0:00:05]} 64. Kd3 {[%clk 0:00:02]}  Kf5 {[%clk 0:00:06]} 65. Kc3 {[%clk 0:00:03]}  Rb8 {[%clk 0:00:06]} 66. Rf2+ {[%clk 0:00:04]}  Ke4 {[%clk 0:00:06]} 67. Kb2 {[%clk 0:00:05]}  Ke3 {[%clk 0:00:06]} 68. Rf1 {[%clk 0:00:04]}  e4 {[%clk 0:00:07]} 69. Re1+ {[%clk 0:00:04]}  Kd3 {[%clk 0:00:08]} 70. Kc1 {[%clk 0:00:04]}  e3 {[%clk 0:00:07]} 71. Rd1+ {[%clk 0:00:02]}  Ke2 {[%clk 0:00:08]} 72. Rh1 {[%clk 0:00:02]}  b2+ {[%clk 0:00:08]} 73. Kb1 {[%clk 0:00:02]}  Kd2 {[%clk 0:00:08]} 74. Rh7 {[%clk 0:00:02]}  e2 {[%clk 0:00:08]} 75. Rd7+ {[%clk 0:00:03]}  Ke1 {[%clk 0:00:08]} 76. Re7 {[%clk 0:00:02]}  Rb4 {[%clk 0:00:09]} 77. Re6 {[%clk 0:00:02]}  Kf2 {[%clk 0:00:09]} 78. Rf6+ {[%clk 0:00:03]}  Ke3 {[%clk 0:00:10]} 79. Re6+ {[%clk 0:00:02]}  Re4 {[%clk 0:00:10]} 80. Rc6 {[%clk 0:00:02]}  e1=Q+ {[%clk 0:00:11]} 81. Ka2 {[%clk 0:00:02]}  b1=Q+ {[%clk 0:00:11]} 82. Ka3 {[%clk 0:00:03]}  Qa1+ {[%clk 0:00:10]} 83. Kb3 {[%clk 0:00:03]}  Qeb1# {[%clk 0:00:10]} 0-1


[Site "https://www.chess.com"]

[Event "Titled Tuesday Blitz October 31 Late 2023"]
[White "Sivakumar, Shaaketh"]
[Black "Tanenbaum, Zachary"]
[WhiteFideId "30940176"]
[BlackFideId "2060850"]
[WhiteElo "2633"]
[BlackElo "2705"]
[Result "1-0"]
[Round "11"]
[TimeControl "180+1"]
[Date "2023.10.31"]
[WhiteClock "0:00:37"]
[BlackClock "0:00:05"]
[Board "23"]

1. Nf3 {[%clk 0:03:00]}  d5 {[%clk 0:03:00]} 2. d4 {[%clk 0:02:59]}  Nf6 {[%clk 0:02:57]} 3. Bf4 {[%clk 0:02:59]}  c5 {[%clk 0:02:57]} 4. e3 {[%clk 0:02:59]}  Nc6 {[%clk 0:02:57]} 5. Nbd2 {[%clk 0:02:58]}  cxd4 {[%clk 0:02:54]} 6. exd4 {[%clk 0:02:57]}  Bf5 {[%clk 0:02:55]} 7. c3 {[%clk 0:02:57]}  e6 {[%clk 0:02:54]} 8. Be2 {[%clk 0:02:54]}  Bd6 {[%clk 0:02:53]} 9. Bxd6 {[%clk 0:02:50]}  Qxd6 {[%clk 0:02:54]} 10. Nh4 {[%clk 0:02:49]}  Be4 {[%clk 0:02:46]} 11. Nxe4 {[%clk 0:02:47]}  dxe4 {[%clk 0:02:47]} 12. g3 {[%clk 0:02:47]}  g5 {[%clk 0:02:39]} 13. Ng2 {[%clk 0:02:46]}  e5 {[%clk 0:02:38]} 14. dxe5 {[%clk 0:02:38]}  Qxe5 {[%clk 0:02:37]} 15. Ne3 {[%clk 0:02:38]}  Rd8 {[%clk 0:02:35]} 16. Qb3 {[%clk 0:02:38]}  Rd7 {[%clk 0:01:58]} 17. h4 {[%clk 0:02:36]}  gxh4 {[%clk 0:01:46]} 18. Rxh4 {[%clk 0:02:36]}  O-O {[%clk 0:01:39]} 19. Kf1 {[%clk 0:02:35]}  Ne7 {[%clk 0:01:22]} 20. Ng4 {[%clk 0:02:26]}  Nxg4 {[%clk 0:01:19]} 21. Rxg4+ {[%clk 0:02:27]}  Ng6 {[%clk 0:01:17]} 22. Qc4 {[%clk 0:02:25]}  Re8 {[%clk 0:01:09]} 23. Re1 {[%clk 0:02:18]}  Kh8 {[%clk 0:01:04]} 24. Qa4 {[%clk 0:02:02]}  Rde7 {[%clk 0:01:00]} 25. Bb5 {[%clk 0:02:01]}  Qh5 {[%clk 0:00:49]} 26. Rxg6 {[%clk 0:01:28]}  Rd8 {[%clk 0:00:16]} 27. Rf6 {[%clk 0:01:14]}  e3 {[%clk 0:00:12]} 28. Qh4 {[%clk 0:01:07]}  Qxb5+ {[%clk 0:00:10]} 29. Kg2 {[%clk 0:01:08]}  Rd2 {[%clk 0:00:08]} 30. Rf3 {[%clk 0:00:55]}  exf2 {[%clk 0:00:07]} 31. Rxf2 {[%clk 0:00:37]}  Rxe1 {[%clk 0:00:06]} 32. Qf6+ {[%clk 0:00:35]}  Kg8 {[%clk 0:00:06]} 33. Qxf7+ {[%clk 0:00:36]}  Kh8 {[%clk 0:00:05]} 34. Qf8# {[%clk 0:00:37]} 1-0


[Site "https://www.chess.com"]